Cogmind - Beta 13 @@@ ROGUE MODE // 2024.04.14 @ 22:57:58 Player: Person Guy Result: Destroyed by D-53 Grenadier with Mini Grenade Launcher Performance ------------- Evolutions (0) 0 Regions Visited (2) 400 Robots Destroyed (23) 115 Value Destroyed (644) 644 Prototype IDs (2) 40 Alien Tech Used (0) 0 Bonus (0) 0 TOTAL SCORE: 1199 Bonus ------- None Cogmind --------- Core Integrity 0/250 Matter 300/300 Energy 82/100 System Corruption 0% Temperature Cool (15) Movement Treading (240) Ox1 Location -10/Mines Parts ------- > --- POWER (1) -------- (None) > --- PROPULSION (2) --- Light Treads > --- UTILITY (2) ------ Large Storage Unit > --- WEAPON (2) ------- Beam Rifle Particle Gun > --- INVENTORY (15) --- Ion Engine Light Nuclear Core Light Treads Light Treads Large Storage Unit Hacking Suite Beam Rifle Peak State ------------ > --- POWER ------------ Ion Engine > --- PROPULSION ------- Light Treads Light Treads > --- UTILITY ---------- Heat Sink Large Storage Unit > --- WEAPON ----------- Beam Rifle Beam Rifle > --- INVENTORY -------- Ion Engine Light Nuclear Core Light Treads Light Treads Large Storage Unit Hacking Suite Beam Rifle Beam Rifle [Rating: 10] Favorites ----------- Power Ion Engine Engine Ion Engine Propulsion Light Treads Treads Light Treads Leg Aluminum Leg Utility Small Storage Unit Device Heat Sink Storage Small Storage Unit Weapon Assault Rifle Energy Gun Beam Rifle Ballistic Gun Assault Rifle Build | -11 -10 -10 ------- Run | Yrd Mat Min Slots Evolved . | . . . Power . | . . . Propulsion . | . . . Utility . | . . . Weapon . | . . . Parts Attached 17 | 6 6 5 Power 2 | 1 1 . Engine 2 | 1 1 . Core . | . . . Reactor . | . . . Propulsion 6 | 2 4 . Treads 4 | 2 2 . Leg 2 | . 2 . Wheel . | . . . Hover . | . . . Flight . | . . . Utility 3 | 1 1 1 Device 1 | . . 1 Storage 2 | 1 1 . Processor . | . . . Hackware . | . . . Protection . | . . . Artifact . | . . . Weapon 6 | 2 . 4 Energy Gun 4 | . . 4 Energy Cannon . | . . . Ballistic Gun 2 | 2 . . Ballistic Cannon . | . . . Launcher . | . . . Special Weapon . | . . . Impact Weapon . | . . . Slashing Weapon . | . . . Piercing Weapon . | . . . Special Melee Weapon . | . . . Unidentified Prototypes . | . . . Parts Lost 5 | . 1 4 Power 1 | . . 1 Propulsion 2 | . 1 1 Utility 1 | . . 1 Weapon 1 | . . 1 Highest Loss Streak 2 | . 1 2 To Critical Strikes . | . . . Average Slot Usage (%) 84 | . 84 85 Engine 14 | . 14 14 Treads 21 | . 20 28 Leg 6 | . 7 . Storage 14 | . 14 14 Energy Gun 3 | . . 26 Ballistic Gun 24 | . 28 . Naked Turns . | . . . Heaviest Build 32 | 11 28 32 Greatest Support 40 | 40 40 40 Greatest Overweight (x) . | . . . Average Overweight (x) . | . . . Largest Inventory Capacity 15 | 8 15 15 Average Capacity 10 | 6 9 15 Most Carried 11 | 4 11 11 Average Carried 6 | . 6 7 Final Capacity 15 | 8 15 15 Final Carried 11 | 1 11 7 Class Distribution -------------------- 100% | Mutant Dominant Class ---------------- Mutant | -10/Materials Mutant | -10/Mines Resources | -11 -10 -10 ----------- Run | Yrd Mat Min Matter Collected 643 | 194 409 40 Remotely . | . . . Salvage Created 783 | . 669 114 Parts 59 | . 55 4 Haulers Intercepted . | . . . Recyclers Shooed 1 | . 1 . Parts Field Recycled . | . . . Retrieved Matter . | . . . Parts Self-Destructed . | . . . Prevented . | . . . Kills | -11 -10 -10 ------- Run | Yrd Mat Min Combat Hostiles Destroyed 20 | . 16 4 Guns 20 | . 16 4 Classes Destroyed 5 | . 4 1 Worker 1 | . 1 . Operator 4 | . 4 . Swarmer 3 | . 3 . Grunt 15 | . 13 2 Assembled 2 | . . 2 Best Kill Streak 8 | . 8 3 Combat Bots Only 7 | . 7 3 Max Kills in Single Turn 1 | . 1 1 Gunslinging . | . . . Exploded . | . . . Melee . | . . . Uniques/NPCs Destroyed . | . . . Combat | -11 -10 -10 -------- Run | Yrd Mat Min Hostile Shots Fired 108 | . 73 35 Missed 23 | . 19 4 Damage Taken 1222 | . 599 623 Core 256 | . 114 142 Absorbed by Shields . | . . . Core Remaining (%) 100 | 100 . . Volleys Fired 87 | . 72 15 Largest 2 | . 2 2 Hottest 121 | . 40 121 Shots Fired 169 | . 144 25 Gun 169 | . 144 25 Cannon . | . . . Launcher . | . . . Special . | . . . Kinetic 144 | . 144 . Thermal 25 | . . 25 Explosive . | . . . Electromagnetic . | . . . Robot Hit Streak 17 | . 17 5 Robot Miss Streak 5 | . 2 5 Penetration Max . | . . . Secondary Targets 5 | . 5 . Max Gunslinging Chain 1 | . 1 . Shots Hit Robots 107 | . 93 14 Core Hits 52 | . 43 9 Critical Kills . | . . . Critical Parts Destroyed 1 | . 1 . Critical Strikes 1 | . 1 . Destroy 1 | . 1 . Melee Attacks . | . . . Impact . | . . . Slashing . | . . . Piercing . | . . . Sneak Attacks . | . . . Combat Hostiles . | . . . Follow-up Attacks . | . . . Damage Inflicted 1249 | . 1029 220 Guns 1249 | . 1029 220 Cannons . | . . . Explosions . | . . . Melee . | . . . Ramming . | . . . Kinetic 1029 | . 1029 . Thermal 220 | . . 220 Explosive . | . . . Electromagnetic . | . . . Impact . | . . . Slashing . | . . . Piercing . | . . . Highest Corruption . | . . . Average Corruption . | . . . Corruption Purged . | . . . Corruption Blocked . | . . . Overload Shots . | . . . Overflow Damage . | . . . Projectiles . | . . . Explosions . | . . . Melee . | . . . Knockbacks . | . . . Impact . | . . . Kinetic . | . . . Secondary . | . . . Self-Inflicted Damage . | . . . Shots . | . . . Rammed . | . . . Targets Rammed . | . . . Kicked . | . . . Crushed . | . . . Highest Temperature 220 | . 24 220 Average Temperature 65 | . 8 106 Received Heat Transfer 387 | . 297 90 Siege Activations . | . . . Robots Corrupted . | . . . Combat Hostiles . | . . . Parts Fried . | . . . Impact Corruptions . | . . . Robots Melted . | . . . Combat Hostiles . | . . . Parts Melted . | . . . Heat Transferred 555 | . . 555 Parts Sabotaged . | . . . Parts Stolen . | . . . Parts Stripped . | . . . Power Chain Reactions . | . . . Alert | -11 -10 -10 ------- Run | Yrd Mat Min Peak Influence 286 | . 286 40 Initial 22 | . . 22 Average 109 | . 126 32 Maximum Alert Level 1 | . 1 . Low Security (%) 80 | 100 76 100 Level 1 19 | . 23 . Level 2 . | . . . Level 3 . | . . . Level 4 . | . . . Level 5 . | . . . High Security . | . . . Max Security . | . . . Squads Dispatched 5 | . 5 . Investigation 1 | . 1 . Extermination . | . . . Reinforcement 4 | . 4 . Assault . | . . . Garrison . | . . . Intercept . | . . . Searches Triggered . | . . . Construction Impeded . | . . . Haulers Reinforced . | . . . Active Scanning Responses . | . . . Cargo Convoy Interrupts . | . . . Stealth | -11 -10 -10 --------- Run | Yrd Mat Min Distress Signals 2 | . 2 . Communications Jammed . | . . . Distress Signals . | . . . Times Spotted 49 | . 40 9 Peak Tracking Total 5 | . 5 5 Tactical Retreats 1 | . 1 . Traps | -11 -10 -10 ------- Run | Yrd Mat Min Traps Triggered 1 | . 1 . Indirectly . | . . . Trap Hack Attempts . | . . . Triggered . | . . . Disarmed . | . . . Reprogrammed . | . . . Reused . | . . . Traps Extracted . | . . . Installed . | . . . Triggered . | . . . Machines | -11 -10 -10 ---------- Run | Yrd Mat Min Machines Disabled 1 | . 1 . Max in Single Turn 1 | . 1 . Machines Repaired . | . . . Machines Dismantled . | . . . Machines Sabotaged . | . . . Overloaded Fab Kills . | . . . Hacking | -11 -10 -10 --------- Run | Yrd Mat Min Machines Accessed 4 | . 4 . Terminals 4 | . 4 . Fabricators . | . . . Repair Stations . | . . . Recycling Units . | . . . Scanalyzers . | . . . Garrison Access . | . . . Total Hacks 11 | . 11 . Successful 4 | . 4 . Failed 7 | . 7 . Catastrophic 2 | . 2 . Database Lockouts . | . . . Manual 7 | . 7 . Terminals 11 | . 11 . Fabricators . | . . . Repair Stations . | . . . Recycling Units . | . . . Scanalyzers . | . . . Garrison Access . | . . . Terminal Hacks 3 | . 3 . Record 1 | . 1 . Prototype ID Bank 1 | . 1 . Alert Level 1 | . 1 . Fabricator Hacks . | . . . Repair Station Hacks . | . . . Recycling Unit Hacks . | . . . Scanalyzer . | . . . Garrison Access Hacks . | . . . Unauthorized Hacks 1 | . 1 . Terminals 1 | . 1 . Operators 1 | . 1 . Fabricators . | . . . Repair Stations . | . . . Recycling Units . | . . . Scanalyzers . | . . . Garrison Access . | . . . Data Cores Recovered . | . . . Used . | . . . Hacking Detections 3 | . 3 . Full Trace Events . | . . . Feedback Events . | . . . Feedback Blocked . | . . . Robot Schematics Acquired . | . . . Robots Built . | . . . Authchips . | . . . Time . | . . . Total Robot Build Rating . | . . . Part Schematics Acquired . | . . . Parts Built . | . . . Authchips . | . . . Time . | . . . Total Part Build Rating . | . . . Parts Repaired . | . . . Time . | . . . Parts Recycled . | . . . Recycled Matter . | . . . Retrieved Matter . | . . . Retrieved Components . | . . . Parts Scanalyzed . | . . . Part Schematics Acquired . | . . . Parts Damaged . | . . . Bothacking | -11 -10 -10 ------------ Run | Yrd Mat Min Used RIF Installer . | . . . Robots Hacked . | . . . Non-combat . | . . . Combat . | . . . Robot Hacks Applied . | . . . Relay Couplers Released . | . . . Fabnet Peak Effective % . | . . . Robots Rewired . | . . . Allies Hacked . | . . . Hacks Repelled . | . . . Allies | -11 -10 -10 -------- Run | Yrd Mat Min Total Allies 2 | . . 2 Largest Group 2 | . . 2 Highest-Rated Group 41 | . . 41 Highest-Rated Ally 31 | . . 31 Total Orders . | . . . Ally Attacks 6 | . . 6 Total Damage 62 | . . 62 Kills 1 | . . 1 Allies Corrupted . | . . . Allies Melted . | . . . Intel | -11 -10 -10 ------- Run | Yrd Mat Min Robot Analysis Total . | . . . Derelict Logs Recovered . | . . . Drone Launches . | . . . Drone Recoveries . | . . . Exploration | -11 -10 -10 ------------- Run | Yrd Mat Min Turns Passed 1907 | 73 1583 251 Spaces Moved 1065 | 46 896 123 Core 11 | 11 . . Treads 728 | 35 570 123 Legs 326 | . 326 . Wheels . | . . . Hover . | . . . Flight . | . . . Fastest Speed 50 | 50 120 160 Average Speed 146 | 133 145 160 Slowest Speed 160 | 160 160 160 Overloaded Moves . | . . . Propulsion Burnouts . | . . . Robots Hopped . | . . . Cave-ins Triggered . | . . . Exploration Rate (%) 44 | 4 95 35 Regions Visited 2 Branch Regions 1 Pre-discovered Areas . | . . . Known Exits Taken . | . . . Unknown Exits Taken 2 | 1 1 . Scrap Searched . | . . . Spaces Dug . | . . . Terrain Destroyed . | . . . Melee . | . . . Projectile . | . . . AOE . | . . . Terrain Rammed . | . . . Walls Destroyed . | . . . Machines Disabled . | . . . Actions | -11 -10 -10 --------- Run | Yrd Mat Min Total 1262 | 58 1049 155 Wait 59 | . 51 8 Move 1063 | 45 895 123 Hop . | . . . Pick Up 26 | 7 18 1 Fast Attach . | . . . Attach 16 | 6 5 5 Detach . | . . . Swap 1 | . 1 . Drop 10 | . 7 3 Fire 87 | . 72 15 Melee . | . . . Ram . | . . . Kick . | . . . Crush . | . . . Escape Stasis . | . . . Rewire . | . . . Trap . | . . . Miscellaneous . | . . . Route ------- -11/Scrapyard -10/Materials (discovered 6 exits: [*Mat x3] / [*Min x2] / [*Sub]) -10/Mines History --------- Turn | Location | Event 2 | -11/Scrapyard | Met Revision 17 5 | -11/Scrapyard | Discovered new exit (range 15) 74 | -11/Scrapyard | Entered Materials 171 | -10/Materials | Destroyed 7 combat bots 308 | -10/Materials | Build established: Mutant 557 | -10/Materials | Discovered new exit (range 16) 562 | -10/Materials | Discovered new exit (range 13) 800 | -10/Materials | Discovered new exit (range 7) 990 | -10/Materials | Discovered new exit (range 5) 1124 | -10/Materials | Discovered new exit (range 4) 1541 | -10/Materials | Discovered new exit (range 11) 1657 | -10/Materials | Entered Mines 1658 | -10/Mines | Assembled infested the area 1682 | -10/Mines | Core integrity fell below 50% 1908 | -10/Mines | Destroyed by D-53 Grenadier with Mini Grenade Launcher Last Messages --------------- 01679_ KV-H3B(z) destroyed. 01679_ 6L-FJY(g) knocked back. 01680_ as-08626 destroyed. 01680_ 6L-FJY(g) destroyed. 01687_ Heat Sink destroyed. 01689_ as-91022 destroyed. 01692_ as-48710 destroyed. 01694_ as-73930 destroyed. 01695_ G-34 Mercenary destroyed. 01715_ R-06 Scavenger collects Carbon-fiber Leg. 01716_ Beam Rifle destroyed. 01720_ R-06 Scavenger collects Lgt. Assault Rifle. 01727_ G-47 Trooper destroyed. 01730_ Acquired 20 matter. 01734_ Acquired Particle Gun. 01735_ Dropped Beam Rifle. 01739_ Acquired 20 matter. 01906_ Ion Engine destroyed. 01908_ Lgt. Treads destroyed. Map ----- +----------------------------------------------------+ | % #??????????????????????????????????????????? | | % #??????????????????????????????????????????? | | % ##??????????????????????????????????????????? | | ##???????????????????????????????????????????? | | % %##???????????????????????????????????????????? | | # ####????????????????????????????????????????? | | ## [% ##???????????????????????????????????????? | | ?## [ ##??????????????????????????????????????? | | ??## #??????????????????? ??????????????????? | | ???##### ##??????????????????? #?????????????????? | | ????????##???????????????????? #?????????????????? | | #????????????????????????????? ##??# ???????????? | | #???#####???????????????????? =### ???????????? | | ##?## ##???####???????????? ! k ???????????? | | ### ##### ####????????? ???????????? | | ##???????? ? ??????????? | | #???????? % #??????????? | | ## ##??????? = #???????????? | | ## ### #????###dd | #???????????? | | #### ### #??### = " !! #???????????? | | #??## ##?# ### ##### !%""" #????????????? | | #???# ##?## #??##### |= #?????????????? | | ????# #?## #????## #?????????????? | | ????# #?# ##???# #????????????????? | | ????# #?# ###??# ##????????????????? | | ???## ### ##?# @ #?????????????????? | | ???# ### ## ### #?????????????????? | | ??## #?# #?## ###?????????????????? | | ### ##?##???### # ??????????????????? | | ##?????????### ####?##?????????????????? | | ##????????????## #??????????????????? | | #??????????????## #??????????????????? | | #???????????????# #### #??????????????????? | | ##???????????????## #??????????????????????? | | # ##?????????????????# #??????????????????????? | | ####??????????????????## ##??????????????????????? | | ???????????????????????###???????????????????????? | | ?????????????????????????????????????????????????? | | ?????????????????????????????????????????????????? | | ?????????????????????????????????????????????????? | | ?????????????????????????????????????????????????? | | | | | | | | | | | | | | | | | | | +----------------------------------------------------+ Best States ------------- Heat Dissipation 35 Energy Generation 10 Energy Capacity 250 Matter Stores 300 Matter Capacity 300 Sight Range 16 Terrain Scan Density 10 Evasion (%) 55 Recoil Reduction 2 Item Schematics ----------------- None Robot Schematics ------------------ None Fabricated ------------ Nothing Alien Tech Used ----------------- None Achievements -------------- None Challenges ------------ None Game ------ Seed CooledFlyingReconfigurator Manual? 0 Play Time 00:12:50 Cumulative 58.4 hours Start 2024.04.14 @ 22:45:01 End 2024.04.14 @ 22:57:58 Sessions 1 Manual Loads 0 Difficulty Rogue Special Mode None Game No. 52 Rogue 52 Adventurer 0 Explorer 0 Win Type - Total 0 Types 0/0/0/0/0/0/0/0/0 Lore% 37 Gallery% 46 Achievement% 29 Wizard Run 0 Options --------- Layout 1 ASCII 0 Keyboard 0 Movement Numpad Keybinds 0 Fullscreen 1 Font 24/Smallcaps Map View 50x35 Zoom Use 0% Tactical HUD 1 Map Filters NONE Filters NONE Steam 1 RUN: 520b257c-1599-42d8-9883-e1ae5bf9042e